fUST/lending_fUST_20240721
["ID","MTS","AMOUNT","RATE_DAILY","PERIOD"]
[332782741,1721519441478,-500.4941119,0.00013698,2]
[332782742,1721519441487,-507.89472845,0.00013698,2]
[332782743,1721519441497,-500.0,0.00013698,2]
[332782744,1721519441506,-500.0,0.00013698,2]
[332782745,1721519441515,-500.0,0.00013698,2]
[332782746,1721519441525,-500.0,0.00013698,2]
[332782747,1721519441534,-500.0,0.00013698,2]
[332782748,1721519441543,-1576.68,0.00013698,2]
[332782749,1721519441553,-500.0,0.00013698,2]
[332782750,1721519441562,-2335.04,0.00013698,2]
[332782751,1721519441571,-500.0,0.00013698,2]
[332782752,1721519441579,-510.80465162,0.00013698,2]
[332782753,1721519441589,-868.47,0.00013698,2]
[332782754,1721519441598,-662.51,0.00013698,2]
[332782755,1721519441607,-503.70346198,0.00013698,2]
[332782756,1721519441616,-500.0,0.00013698,2]
[332782757,1721519441625,-629.23,0.00013698,2]
[332782758,1721519441635,-500.0,0.00013698,2]
[332782759,1721519441645,-526.1689231,0.00013698,2]
[332782760,1721519441654,-825.81,0.00013698,2]
[332782761,1721519441664,-505.86,0.00013698,2]
[332782762,1721519441673,-500.0,0.00013698,2]
[332782763,1721519441683,-2113.08,0.00013698,2]
[332782764,1721519441692,-500.0,0.00013698,2]
[332782765,1721519441702,-2877.78,0.00013698,2]
[332782766,1721519441711,-500.0,0.00013698,2]
[332782767,1721519441720,-500.0,0.00013698,2]
[332782768,1721519441729,-500.0,0.00013698,2]
[332782769,1721519441738,-500.0,0.00013698,2]
[332782770,1721519441750,-500.0,0.00013698,2]
[332782771,1721519441760,-500.0,0.00013698,2]
[332782772,1721519441769,-500.0,0.00013698,2]
[332782773,1721519441778,-500.0,0.00013698,2]
[332782774,1721519441787,-500.0,0.00013698,2]
[332782775,1721519441797,-500.0,0.00013698,2]
[332782776,1721519441807,-500.0,0.00013698,2]
[332782777,1721519441815,-500.0,0.00013698,2]
[332782778,1721519441825,-500.0,0.00013698,2]
[332782779,1721519441834,-500.0,0.00013698,2]
[332782780,1721519441844,-500.0,0.00013698,2]
[332782781,1721519441853,-500.0,0.00013698,2]
[332782782,1721519441863,-500.0,0.00013698,2]
[332782783,1721519441872,-500.0,0.00013698,2]
[332782784,1721519441881,-674.93,0.00013698,2]
[332782785,1721519441890,-500.0,0.00013698,2]
[332782786,1721519441899,-500.0,0.00013698,2]
[332782787,1721519441909,-500.0,0.00013698,2]
[332782788,1721519441919,-500.0,0.00013698,2]
[332782789,1721519441929,-500.0,0.00013698,2]
[332782790,1721519441939,-500.0,0.00013698,2]
[332782791,1721519441949,-500.0,0.00013698,2]
[332782792,1721519441959,-535.35997023,0.00013698,2]
[332782793,1721519441968,-500.0,0.00013698,2]
[332782794,1721519441977,-500.0,0.00013698,2]
[332782795,1721519441987,-585.55,0.00013698,2]
[332782796,1721519441996,-2922.57,0.00013698,2]
[332782797,1721519442006,-500.0,0.00013698,2]
[332782798,1721519442015,-504.29336531,0.00013698,2]
[332782799,1721519442025,-1186.22,0.00013698,2]
[332782800,1721519442034,-501.25801672,0.00013698,2]
[332782801,1721519442043,-500.0,0.00013698,2]
[332782802,1721519442052,-500.0,0.00013698,2]
[332782803,1721519442062,-833.89,0.00013698,2]
[332782804,1721519442071,-500.0,0.00013698,2]
[332782805,1721519442081,-569.4009346,0.00013698,2]
[332782806,1721519442091,-500.0,0.00013698,2]
[332782807,1721519442100,-500.0,0.00013698,2]
[332782808,1721519442109,-500.0,0.00013698,2]
[332782809,1721519442119,-398.38256931,0.00013698,2]
[332782810,1721519442128,-938.32,0.00013698,2]
[332782811,1721519442137,-606.41,0.00013698,2]
[332782812,1721519442146,-500.0,0.00013698,2]
[332782813,1721519442156,-501.22838301,0.00013698,2]
[332782814,1721519442166,-500.0,0.00013698,2]
[332782815,1721519442176,-511.33,0.00013698,2]
[332782816,1721519442186,-500.0,0.00013698,2]
[332782817,1721519442195,-500.0,0.00013698,2]
[332782818,1721519442205,-500.0,0.00013698,2]
[332782819,1721519442215,-500.0,0.00013698,2]
[332782820,1721519442224,-500.0,0.00013698,2]
[332782821,1721519442234,-878.98,0.00013698,2]
[332782822,1721519442243,-572.82,0.00013698,2]
[332782823,1721519442252,-556.87,0.00013698,2]
[332782824,1721519442262,-511.47376649,0.00013698,2]
[332782825,1721519442271,-500.0,0.00013698,2]
[332782826,1721519442280,-500.0,0.00013698,2]
[332782827,1721519442289,-500.0,0.00013698,2]
[332782828,1721519442298,-1145.07,0.00013698,2]
[332782829,1721519442308,-500.0,0.00013698,2]
[332782830,1721519442317,-1034.77,0.00013698,2]
[332782831,1721519442326,-500.0,0.00013698,2]
[332782832,1721519442335,-500.0,0.00013698,2]
[332782833,1721519442345,-500.0,0.00013698,2]
[332782834,1721519442354,-500.0,0.00013698,2]
[332782835,1721519442364,-602.35,0.00013698,2]
[332782836,1721519442374,-500.0,0.00013698,2]
[332782837,1721519442383,-500.0,0.00013698,2]
[332782838,1721519442392,-500.0,0.00013698,2]
[332782839,1721519442402,-1819.62,0.00013698,2]
[332782840,1721519442412,-500.0,0.00013698,2]
[332782841,1721519442421,-501.71905467,0.00013698,2]
[332782842,1721519442431,-500.0,0.00013698,2]
[332782843,1721519442440,-824.76,0.00013698,2]
[332782844,1721519442450,-644.94,0.00013698,2]
[332782845,1721519442459,-507.51827141,0.00013698,2]
[332782846,1721519442468,-500.0,0.00013698,2]
[332782847,1721519442477,-629.36,0.00013698,2]
[332782848,1721519442486,-505.68851242,0.00013698,2]
[332782849,1721519442495,-500.0,0.00013698,2]
[332782850,1721519442504,-500.0,0.00013698,2]
[332782851,1721519442513,-500.0,0.00013698,2]
[332782852,1721519442523,-500.0,0.00013698,2]
[332782853,1721519442532,-501.40132505,0.00013698,2]
[332782854,1721519442541,-500.0,0.00013698,2]
[332782855,1721519442553,-500.0,0.00013698,2]
[332782856,1721519442563,-4135.28,0.00013698,2]
[332782857,1721519442573,-500.0,0.00013698,2]
[332782858,1721519442582,-500.0,0.00013698,2]
[332782859,1721519442591,-500.0,0.00013698,2]
[332782860,1721519442600,-1804.8,0.00013698,2]
[332782861,1721519442609,-500.0,0.00013698,2]
[332782862,1721519442619,-1511.84,0.00013698,2]
[332782863,1721519442628,-503.66910884,0.00013698,2]
[332782864,1721519442637,-500.0,0.00013698,2]
[332782865,1721519442646,-500.0,0.00013698,2]
[332782866,1721519442656,-789.05,0.00013698,2]
[332782867,1721519442666,-502.3541028,0.00013698,2]
[332782868,1721519442675,-500.0,0.00013698,2]
[332782869,1721519442688,-500.0,0.00013698,2]
[332782870,1721519442699,-500.0,0.00013698,2]
[332782871,1721519442709,-698.84,0.00013698,2]
[332782872,1721519442719,-791.54,0.00013698,2]
[332782873,1721519442728,-500.0,0.00013698,2]
[332782874,1721519442737,-555.5,0.00013698,2]
[332782875,1721519442749,-501.14776022,0.00013698,2]
[332782876,1721519442758,-500.0,0.00013698,2]
[332782877,1721519442768,-500.0,0.00013698,2]
[332782878,1721519442777,-500.0,0.00013698,2]
[332782879,1721519442786,-592.17800272,0.00013698,2]
[332782880,1721519442796,-500.0,0.00013698,2]
[332782882,1721519442805,-601.68,0.00013698,2]
[332782885,1721519442814,-500.0,0.00013698,2]
[332782888,1721519442824,-585.64,0.00013698,2]
[332782891,1721519442834,-500.0,0.00013698,2]
[332782894,1721519442843,-500.0,0.00013698,2]
[332782897,1721519442853,-500.0,0.00013698,2]
[332782899,1721519442864,-500.0,0.00013698,2]
[332782900,1721519442873,-500.0,0.00013698,2]
[332782902,1721519442883,-500.0,0.00013698,2]
[332782904,1721519442892,-500.0,0.00013698,2]
[332782906,1721519442901,-622.82,0.00013698,2]
[332782908,1721519442913,-506.666072,0.00013698,2]
[332782910,1721519442925,-500.0,0.00013698,2]
[332782912,1721519442935,-512.22231295,0.00013698,2]
[332782914,1721519442945,-545.35,0.00013698,2]
[332782916,1721519442956,-500.0,0.00013698,2]
[332782918,1721519442966,-500.0,0.00013698,2]
[332782920,1721519442978,-1663.61,0.00013698,2]
[332782922,1721519442990,-500.0,0.00013698,2]
[332782924,1721519442999,-500.0,0.00013698,2]
[332782926,1721519443008,-500.0,0.00013698,2]
[332782928,1721519443018,-867.9,0.00013698,2]
[332782930,1721519443027,-509.288735,0.00013698,2]
[332782932,1721519443036,-500.0,0.00013698,2]
[332782934,1721519443045,-500.0,0.00013698,2]
[332782936,1721519443055,-500.0,0.00013698,2]
[332782938,1721519443064,-500.0,0.00013698,2]
[332782940,1721519443074,-500.0,0.00013698,2]
[332782942,1721519443083,-500.0,0.00013698,2]
[332782944,1721519443092,-500.0,0.00013698,2]
[332782946,1721519443102,-500.0,0.00013698,2]
[332782948,1721519443112,-500.0,0.00013698,2]
[332782950,1721519443121,-500.0,0.00013698,2]
[332782952,1721519443131,-500.0,0.00013698,2]
[332782954,1721519443141,-500.0,0.00013698,2]
[332782956,1721519443150,-500.0,0.00013698,2]
[332782957,1721519443160,-500.0,0.00013698,2]
[332782959,1721519443171,-500.0,0.00013698,2]
[332782962,1721519443181,-519.20187888,0.00013698,2]
[332782964,1721519443191,-1950.83,0.00013698,2]
[332782966,1721519443201,-500.0,0.00013698,2]
[332782968,1721519443210,-500.0,0.00013698,2]
[332782970,1721519443220,-500.0,0.00013698,2]
[332782972,1721519443230,-859.26,0.00013698,2]
[332782974,1721519443239,-500.0,0.00013698,2]
[332782976,1721519443249,-465.25885834,0.00013698,2]
[332782978,1721519443259,-879.62,0.00013698,2]
[332782980,1721519443269,-1876.93,0.00013698,2]
[332782982,1721519443278,-500.0,0.00013698,2]
[332782984,1721519443289,-2604.43,0.00013698,2]
[332782986,1721519443299,-500.0,0.00013698,2]
[332782988,1721519443309,-1609.23,0.00013698,2]
[332782990,1721519443319,-833.39,0.00013698,2]
[332782992,1721519443331,-500.0,0.00013698,2]
[332782995,1721519443341,-501.14861689,0.00013698,2]
[332782997,1721519443350,-555.37,0.00013698,2]
[332782998,1721519443359,-500.0,0.00013698,2]
[332783002,1721519443369,-500.0,0.00013698,2]
[332783004,1721519443378,-500.0,0.00013698,2]
[332783006,1721519443388,-500.0,0.00013698,2]
[332783009,1721519443397,-1692.13,0.00013698,2]
[332783012,1721519443408,-502.11824121,0.00013698,2]
[332783014,1721519443418,-500.0,0.00013698,2]
[332783016,1721519443428,-1892.2,0.00013698,2]
[332783018,1721519443438,-500.0,0.00013698,2]
[332783020,1721519443447,-500.0,0.00013698,2]
[332783022,1721519443457,-500.0,0.00013698,2]
[332783024,1721519443467,-517.43758687,0.00013698,2]
[332783026,1721519443478,-500.0,0.00013698,2]
[332783028,1721519443488,-500.0,0.00013698,2]
[332783030,1721519443497,-500.0,0.00013698,2]
[332783032,1721519443507,-500.0,0.00013698,2]
[332783034,1721519443516,-502.06952761,0.00013698,2]
[332783036,1721519443527,-500.0,0.00013698,2]
[332783038,1721519443537,-500.0,0.00013698,2]
[332783040,1721519443547,-548.2092026,0.00013698,2]
[332783042,1721519443557,-1247.1,0.00013698,2]
[332783044,1721519443567,-500.0,0.00013698,2]
[332783046,1721519443579,-500.0,0.00013698,2]
[332783048,1721519443588,-514.86963877,0.00013698,2]
[332783050,1721519443597,-190.88335774,0.00013698,2]
[332783052,1721519443607,-500.0,0.00013698,2]
[332783054,1721519443617,-548.75997375,0.00013698,2]
[332783056,1721519443627,-935.09,0.00013698,2]
[332783058,1721519443636,-535.33170948,0.00013698,2]
[332783060,1721519443646,-500.0,0.00013698,2]
[332783062,1721519443657,-518.04290527,0.00013698,2]
[332783064,1721519443667,-500.0,0.00013698,2]
[332783066,1721519443676,-516.86201681,0.00013698,2]
[332783068,1721519443686,-1616.59,0.00013698,2]
[332783070,1721519443696,-500.0,0.00013698,2]
[332783073,1721519443705,-500.0,0.00013698,2]
[332783075,1721519443715,-500.0,0.00013698,2]
[332783077,1721519443725,-500.0,0.00013698,2]
[332783079,1721519443734,-500.0,0.00013698,2]
[332783080,1721519443744,-1307.06,0.00013698,2]
[332783083,1721519443757,-500.0,0.00013698,2]
[332783084,1721519443767,-500.0,0.00013698,2]
[332783086,1721519443776,-500.0,0.00013698,2]
[332783088,1721519443786,-500.0,0.00013698,2]
[332783106,1721519443974,-500.0,0.00013698,2]
[332783108,1721519443986,-500.0,0.00013698,2]
[332783109,1721519443997,-500.0,0.00013698,2]
[332783111,1721519444008,-500.0,0.00013698,2]
[332783113,1721519444018,-500.0,0.00013698,2]
[332783115,1721519444028,-500.0,0.00013698,2]
[332783116,1721519444037,-500.0,0.00013698,2]
[332783118,1721519444048,-282.83156827,0.00013698,2]
[332783120,1721519444059,-500.0,0.00013698,2]
[332783122,1721519444069,-1764.74,0.00013698,2]
[332783123,1721519444078,-788.1,0.00013698,2]
[332783125,1721519444091,-500.0,0.00013698,2]
[332783127,1721519444102,-28439.29,0.00013698,2]
[332783129,1721519444115,-505.76262032,0.00013698,2]
[332783131,1721519444125,-500.0,0.00013698,2]
[332783133,1721519444136,-571.89745073,0.00013698,2]
[332783135,1721519444147,-876.08,0.00013698,2]
[332783137,1721519444158,-508.09294628,0.00013698,2]
[332783139,1721519444170,-1041.97,0.00013698,2]
[332783140,1721519444180,-509.27639716,0.00013698,2]
[332783142,1721519444192,-500.0,0.00013698,2]
[332783144,1721519444203,-659.37,0.00013698,2]
[332783146,1721519444212,-500.0,0.00013698,2]
[332783147,1721519444221,-500.0,0.00013698,2]
[332783149,1721519444231,-500.0,0.00013698,2]
[332783151,1721519444242,-500.0,0.00013698,2]
[332783153,1721519444251,-500.0,0.00013698,2]
[332783155,1721519444261,-500.0,0.00013698,2]
[332783156,1721519444271,-500.0,0.00013698,2]
[332783158,1721519444281,-524.86017018,0.00013698,2]
[332783160,1721519444291,-1360.72,0.00013698,2]
[332783162,1721519444300,-500.0,0.00013698,2]
[332783163,1721519444310,-500.0,0.00013698,2]
[332783165,1721519444319,-500.0,0.00013698,2]
[332783167,1721519444329,-500.0,0.00013698,2]
[332783169,1721519444339,-500.0,0.00013698,2]
[332783171,1721519444348,-500.0,0.00013698,2]
[332783172,1721519444358,-500.0,0.00013698,2]
[332783174,1721519444370,-500.0,0.00013698,2]
[332783176,1721519444381,-500.0,0.00013698,2]
[332783178,1721519444392,-500.0,0.00013698,2]
[332783180,1721519444402,-500.0,0.00013698,2]
[332783182,1721519444412,-500.0,0.00013698,2]
[332783184,1721519444422,-500.0,0.00013698,2]
[332783186,1721519444432,-500.0,0.00013698,2]
[332783187,1721519444445,-500.0,0.00013698,2]
[332783189,1721519444455,-500.0,0.00013698,2]
[332783191,1721519444468,-500.0,0.00013698,2]
[332783193,1721519444479,-500.0,0.00013698,2]
[332783195,1721519444490,-615.43055674,0.00013698,2]
[332783197,1721519444500,-849.12,0.00013698,2]
[332783199,1721519444509,-2166.72,0.00013698,2]
[332783201,1721519444519,-500.0,0.00013698,2]
[332783202,1721519444529,-653.69,0.00013698,2]
[332783204,1721519444538,-500.0,0.00013698,2]
[332783206,1721519444548,-504.88,0.00013698,2]
[332783208,1721519444560,-500.0,0.00013698,2]
[332783210,1721519444570,-546.76,0.00013698,2]
[332783211,1721519444580,-683.47,0.00013698,2]
[332783213,1721519444589,-500.0,0.00013698,2]
[332783215,1721519444598,-500.0,0.00013698,2]
[332783217,1721519444608,-1858.82,0.00013698,2]
[332783219,1721519444618,-596.98,0.00013698,2]
[332783220,1721519444628,-503.08189526,0.00013698,2]
[332783222,1721519444639,-3062.95,0.00013698,2]
[332783224,1721519444649,-500.0,0.00013698,2]
[332783226,1721519444659,-501.77387035,0.00013698,2]
[332783228,1721519444669,-753.04,0.00013698,2]
[332783230,1721519444679,-500.3265989,0.00013698,2]
[332783231,1721519444693,-505.5,0.00013698,2]
[332783233,1721519444702,-2104.59,0.00013698,2]
[332783235,1721519444712,-1063.43,0.00013698,2]
[332783237,1721519444722,-509.05096793,0.00013698,2]
[332783238,1721519444731,-500.0,0.00013698,2]
[332783240,1721519444740,-502.77101996,0.00013698,2]
[332783242,1721519444753,-1172.97,0.00013698,2]
[332783244,1721519444763,-500.0,0.00013698,2]
[332783246,1721519444774,-632.64,0.00013698,2]
[332783248,1721519444784,-545.29737027,0.00013698,2]
[332783250,1721519444796,-500.0,0.00013698,2]
[332783251,1721519444806,-500.0,0.00013698,2]
[332783253,1721519444816,-500.0,0.00013698,2]
[332783255,1721519444826,-776.89,0.00013698,2]
[332783257,1721519444836,-500.0,0.00013698,2]
[332783259,1721519444846,-456.093618,0.00013698,2]
[332783261,1721519444856,-2161.56,0.00013698,2]
[332783263,1721519444867,-500.0,0.00013698,2]
[332783264,1721519444877,-1042.84,0.00013698,2]
[332783266,1721519444887,-575.08,0.00013698,2]
[332783268,1721519444897,-500.0,0.00013698,2]
[332783270,1721519444908,-500.0,0.00013698,2]
[332783272,1721519444918,-502.26881878,0.00013698,2]
[332783273,1721519444927,-500.0,0.00013698,2]
[332783275,1721519444939,-500.0,0.00013698,2]
[332783277,1721519444949,-3286.47,0.00013698,2]
[332783279,1721519444958,-679.77,0.00013698,2]
[332783281,1721519444969,-500.0,0.00013698,2]
[332783283,1721519444979,-500.0,0.00013698,2]
[332783285,1721519444989,-5601.84,0.00013698,2]
[332783287,1721519445000,-923.67,0.00013698,2]
[332783288,1721519445010,-500.0,0.00013698,2]
[332783290,1721519445020,-546.25,0.00013698,2]
[332783292,1721519445030,-500.0,0.00013698,2]
[332783294,1721519445040,-500.0,0.00013698,2]
[332783296,1721519445049,-500.0,0.00013698,2]
[332783298,1721519445060,-500.0,0.00013698,2]
[332783299,1721519445070,-500.0,0.00013698,2]
[332783301,1721519445079,-614.62,0.00013698,2]
[332783303,1721519445089,-776.76,0.00013698,2]
[332783305,1721519445099,-500.0,0.00013698,2]
[332783307,1721519445109,-2103.65,0.00013698,2]
[332783309,1721519445118,-500.0,0.00013698,2]
[332783310,1721519445128,-500.0,0.00013698,2]
[332783312,1721519445138,-500.0,0.00013698,2]
[332783314,1721519445148,-500.0,0.00013698,2]
[332783316,1721519445157,-500.0,0.00013698,2]
[332783318,1721519445167,-500.0,0.00013698,2]
[332783319,1721519445177,-500.0,0.00013698,2]
[332783321,1721519445187,-678.0,0.00013698,2]
[332783323,1721519445197,-8291.93,0.00013698,2]
[332783325,1721519445206,-500.0,0.00013698,2]
[332783327,1721519445216,-1581.95,0.00013698,2]
[332783328,1721519445226,-500.0,0.00013698,2]
[332783330,1721519445235,-500.0,0.00013698,2]
[332783332,1721519445245,-2267.82,0.00013698,2]
[332783334,1721519445254,-500.0,0.00013698,2]
[332783336,1721519445264,-500.0,0.00013698,2]
[332783338,1721519445274,-500.0,0.00013698,2]
[332783339,1721519445283,-962.97,0.00013698,2]
[332783341,1721519445293,-500.0,0.00013698,2]
[332783343,1721519445303,-651.55,0.00013698,2]
[332783345,1721519445313,-502.92442484,0.00013698,2]
[332783347,1721519445323,-500.0,0.00013698,2]
[332783349,1721519445333,-505.7857432,0.00013698,2]
[332783350,1721519445342,-16858.36,0.00013698,2]
[332783352,1721519445352,-5035.15,0.00013698,2]
[332783354,1721519445362,-500.0,0.00013698,2]
[332783356,1721519445372,-500.0,0.00013698,2]
[332783358,1721519445382,-500.0,0.00013698,2]
[332783360,1721519445392,-500.0,0.00013698,2]
[332783361,1721519445402,-2579.67,0.00013698,2]
[332783363,1721519445412,-500.0,0.00013698,2]
[332783365,1721519445422,-518.49437446,0.00013698,2]
[332783367,1721519445432,-500.0,0.00013698,2]
[332783369,1721519445443,-500.0,0.00013698,2]
[332783371,1721519445453,-500.0,0.00013698,2]
[332783373,1721519445463,-500.0,0.00013698,2]
[332783375,1721519445474,-500.0,0.00013698,2]
[332783376,1721519445484,-500.0,0.00013698,2]
[332783378,1721519445494,-500.0,0.00013698,2]
[332783380,1721519445504,-2795.92,0.00013698,2]
[332783382,1721519445514,-7401.26,0.00013698,2]
[332783384,1721519445525,-627.68,0.00013698,2]
[332783386,1721519445537,-2959.08,0.00013698,2]
[332783388,1721519445547,-500.0,0.00013698,2]
[332783390,1721519445558,-501.29419541,0.00013698,2]
[332783392,1721519445568,-654.97,0.00013698,2]
[332783394,1721519445580,-500.0,0.00013698,2]
[332783396,1721519445590,-500.0,0.00013698,2]
[332783397,1721519445601,-500.0,0.00013698,2]
[332783399,1721519445611,-500.08985855,0.00013698,2]
[332783401,1721519445620,-500.0,0.00013698,2]
[332783403,1721519445630,-3024.99,0.00013698,2]
[332783405,1721519445639,-500.0,0.00013698,2]
[332783407,1721519445649,-646.05085239,0.00013698,2]
[332783408,1721519445659,-2044.79,0.00013698,2]
[332783410,1721519445668,-500.0,0.00013698,2]
[332783412,1721519445678,-1460.09,0.00013698,2]
[332783414,1721519445689,-643.71,0.00013698,2]
[332783416,1721519445699,-502.61155734,0.00013698,2]
[332783418,1721519445708,-500.0,0.00013698,2]
[332783420,1721519445718,-500.0,0.00013698,2]
[332783421,1721519445727,-503.2814085,0.00013698,2]
[332783423,1721519445737,-500.0,0.00013698,2]
[332783425,1721519445749,-419.0673167,0.00013698,2]
[332783427,1721519445759,-500.0,0.00013698,2]
[332783428,1721519445769,-500.0,0.00013698,2]
[332783430,1721519445779,-507.81365659,0.00013698,2]
[332783432,1721519445788,-500.0,0.00013698,2]
[332783434,1721519445798,-601.4404759,0.00013698,2]
[332783436,1721519445808,-1022.55,0.00013698,2]
[332783438,1721519445819,-946.75,0.00013698,2]
[332783439,1721519445831,-594.76,0.00013698,2]
[332783441,1721519445841,-243.73701742,0.00013698,2]
[332783443,1721519445850,-507.85484977,0.00013698,2]
[332783445,1721519445861,-500.81614324,0.00013698,2]
[332783447,1721519445870,-558.84,0.00013698,2]
[332783448,1721519445879,-558.84,0.00013698,2]
[332783450,1721519445888,-558.84,0.00013698,2]
[332783452,1721519445898,-558.84,0.00013698,2]
[332783454,1721519445909,-4419.49,0.00013698,2]
[332783456,1721519445918,-558.84,0.00013698,2]
[332783458,1721519445928,-558.84,0.00013698,2]
[332783460,1721519445938,-558.84,0.00013698,2]
[332783461,1721519445947,-558.84,0.00013698,2]
[332783463,1721519445956,-558.84,0.00013698,2]
[332783465,1721519445966,-558.84,0.00013698,2]
[332783467,1721519445976,-558.84,0.00013698,2]
[332783469,1721519445985,-558.84,0.00013698,2]
[332783471,1721519445994,-1260.72,0.00013698,2]
[332783472,1721519446004,-505.79508747,0.00013698,2]
[332783474,1721519446013,-558.84,0.00013698,2]
[332783476,1721519446023,-558.84,0.00013698,2]
[332783478,1721519446032,-500.0,0.00013698,2]
[332783480,1721519446042,-500.0,0.00013698,2]
[332783482,1721519446052,-564.97,0.00013698,2]
[332783484,1721519446062,-505.46201646,0.00013698,2]
[332783485,1721519446071,-500.0,0.00013698,2]
[332783487,1721519446080,-2317.96,0.00013698,2]
[332783489,1721519446089,-500.0,0.00013698,2]
[332783491,1721519446099,-535.13087164,0.00013698,2]
[332783493,1721519446108,-500.0,0.00013698,2]
[332783495,1721519446118,-508.40747236,0.00013698,2]
[332783496,1721519446127,-910.55,0.00013698,2]
[332783498,1721519446136,-652.92,0.00013698,2]
[332783500,1721519446146,-500.0,0.00013698,2]
[332783502,1721519446155,-500.0,0.00013698,2]
[332783504,1721519446165,-500.0,0.00013698,2]
[332783506,1721519446175,-500.0,0.00013698,2]
[332783507,1721519446185,-500.0,0.00013698,2]
[332783509,1721519446195,-10729.85,0.00013698,2]
[332783511,1721519446204,-500.0,0.00013698,2]
[332783513,1721519446214,-500.0,0.00013698,2]
[332783515,1721519446223,-500.0,0.00013698,2]
[332783517,1721519446233,-500.0,0.00013698,2]
[332783518,1721519446242,-595.23,0.00013698,2]
[332783520,1721519446251,-500.0,0.00013698,2]
[332783522,1721519446262,-1902.53,0.00013698,2]
[332783524,1721519446272,-1885.9,0.00013698,2]
[332783526,1721519446281,-500.0,0.00013698,2]
[332783528,1721519446290,-501.3438523,0.00013698,2]
[332783530,1721519446300,-500.0,0.00013698,2]
[332783531,1721519446309,-500.0,0.00013698,2]
[332783533,1721519446319,-3665.51,0.00013698,2]
[332783535,1721519446328,-500.0,0.00013698,2]
[332783537,1721519446338,-560.67,0.00013698,2]
[332783539,1721519446347,-500.0,0.00013698,2]
[332783541,1721519446357,-276.89937302,0.00013698,2]
[332783542,1721519446366,-500.0,0.00013698,2]
[332783544,1721519446375,-2501.31,0.00013698,2]
[332783546,1721519446385,-500.0,0.00013698,2]
[332783552,1721519446443,-500.0,0.00013698,2]
[332783554,1721519446453,-500.0,0.00013698,2]
[332783556,1721519446463,-1017.95,0.00013698,2]
[332783557,1721519446472,-500.0,0.00013698,2]
[332783559,1721519446481,-500.0,0.00013698,2]
[332783561,1721519446491,-509.82043443,0.00013698,2]
[332783563,1721519446499,-500.0,0.00013698,2]
[332783565,1721519446509,-500.0,0.00013698,2]
[332783566,1721519446519,-500.0,0.00013698,2]
[332783568,1721519446528,-500.0,0.00013698,2]
[332783570,1721519446537,-219.09698425,0.00013698,2]
[332783572,1721519446546,-500.0,0.00013698,2]
[332783574,1721519446555,-1794.25,0.00013698,2]
[332783576,1721519446564,-500.0,0.00013698,2]
[332783577,1721519446575,-500.0,0.00013698,2]
[332783579,1721519446585,-1349.61,0.00013698,2]
[332783581,1721519446595,-2905.48,0.00013698,2]
[332783583,1721519446604,-500.0,0.00013698,2]
[332783585,1721519446614,-1128.85,0.00013698,2]